fUST/lending_fUST_20250207
["ID","MTS","AMOUNT","RATE_DAILY","PERIOD"]
[352024747,1738887045428,-151.0,0.00014149,2]
[352024750,1738887045439,-703.04047,0.00014152,2]
[352024752,1738887045448,-703.04047,0.00014152,2]
[352024754,1738887045458,-151.0,0.00014152,2]
[352024756,1738887045468,-177.731899,0.00014152,2]
[352024758,1738887045478,-153.0,0.00014152,2]
[352024760,1738887045489,-153.0,0.00014152,2]
[352024762,1738887045499,-153.0,0.00014152,2]
[352024764,1738887045509,-153.0,0.00014152,2]
[352024766,1738887045519,-2277.96,0.00014199,2]
[352024768,1738887045530,-500.0,0.00014245,2]
[352024770,1738887045540,-172.084125,0.00014246,2]
[352024772,1738887045549,-172.084125,0.00014246,2]
[352024774,1738887045559,-500.0,0.00014246,2]
[352024776,1738887045569,-439.849649,0.00014246,2]
[352024778,1738887045579,-439.849649,0.00014246,2]
[352024781,1738887045589,-160.528943,0.00014246,2]
[352024783,1738887045599,-160.528943,0.00014246,2]
[352024785,1738887045609,-152.925212,0.00014246,2]
[352024787,1738887045619,-152.925212,0.00014246,2]
[352024789,1738887045628,-151.0,0.00014246,2]
[352024791,1738887045638,-500.0,0.00014246,2]
[352024793,1738887045647,-500.0,0.00014246,2]
[352024795,1738887045657,-2953.62,0.00014246,2]
[352024797,1738887045667,-500.0,0.00014246,2]
[352024799,1738887045677,-693.01,0.00014246,2]
[352024801,1738887045687,-500.0,0.00014246,2]
[352024803,1738887045696,-500.0,0.00014246,2]
[352024805,1738887045706,-500.0,0.00014246,2]
[352024807,1738887045718,-500.0,0.00014246,2]
[352024809,1738887045727,-615.18,0.00014246,2]
[352024811,1738887045738,-500.0,0.00014246,2]
[352024813,1738887045748,-500.0,0.00014246,2]
[352024815,1738887045758,-1609.36,0.00014246,2]
[352024818,1738887045768,-1279.9,0.00014246,2]
[352024820,1738887045779,-500.0,0.00014246,2]
[352024822,1738887045789,-296.22080225,0.00014246,2]
[352024824,1738887045799,-5486.08,0.00014246,2]
[352024826,1738887045809,-500.0,0.00014246,2]
[352024828,1738887045819,-500.0,0.00014246,2]
[352024842,1738887045943,-511.73,0.00014246,2]
[352024844,1738887045967,-500.0,0.00014246,2]
[352024846,1738887045981,-592.24,0.00014246,2]
[352024848,1738887045991,-151.0,0.00014246,2]
[352024850,1738887046001,-968.18,0.00014246,2]
[352024852,1738887046011,-151.0,0.00014246,2]
[352024854,1738887046022,-219.82542799,0.00014246,2]
[352024856,1738887046033,-500.0,0.00014246,2]
[352024858,1738887046043,-161.690545,0.00014246,2]
[352024860,1738887046053,-500.0,0.00014246,2]
[352024862,1738887046063,-160.54,0.0001425,2]
[352024864,1738887046073,-151.0,0.00014252,2]
[352024866,1738887046083,-514.41186615,0.0001428,2]
[352024868,1738887046093,-179.36917078,0.00014318,2]
[352024870,1738887046103,-151.0,0.00014383,2]
[352024872,1738887046112,-500.0,0.00014383,2]
[352024874,1738887046123,-500.0,0.00014383,2]
[352024876,1738887046138,-703.04047,0.00014383,2]
[352024878,1738887046149,-703.04047,0.00014383,2]
[352024880,1738887046159,-151.0,0.00014383,2]
[352024882,1738887046169,-2953.62,0.00014383,2]
[352024884,1738887046178,-500.0,0.00014383,2]
[352024886,1738887046187,-357.636351,0.00014383,2]
[352024888,1738887046196,-357.636351,0.00014383,2]
[352024889,1738887046206,-693.01,0.00014383,2]
[352024891,1738887046215,-500.0,0.00014383,2]
[352024894,1738887046225,-151.0,0.00014383,2]
[352024896,1738887046235,-151.0,0.00014383,2]
[352024897,1738887046245,-500.0,0.00014383,2]
[352024900,1738887046255,-151.0,0.00014383,2]
[352024901,1738887046265,-500.0,0.00014383,2]
[352024904,1738887046274,-500.0,0.00014383,2]
[352024906,1738887046284,-151.0,0.00014383,2]
[352024908,1738887046293,-151.0,0.00014383,2]
[352024910,1738887046303,-151.0,0.00014383,2]
[352024912,1738887046314,-151.0,0.00014383,2]
[352024914,1738887046324,-615.18,0.00014383,2]
[352024917,1738887046334,-500.0,0.00014383,2]
[352024920,1738887046343,-500.0,0.00014383,2]
[352024922,1738887046353,-1609.36,0.00014383,2]
[352024925,1738887046362,-1279.9,0.00014383,2]
[352024928,1738887046371,-500.0,0.00014383,2]
[352024931,1738887046380,-5486.08,0.00014383,2]
[352024933,1738887046389,-500.0,0.00014383,2]
[352024934,1738887046399,-592.24,0.00014383,2]
[352024936,1738887046410,-511.73,0.00014383,2]
[352024938,1738887046420,-968.18,0.00014383,2]
[352024941,1738887046431,-500.0,0.00014383,2]
[352024943,1738887046441,-500.0,0.00014383,2]
[352024944,1738887046451,-192.82949252,0.00014384,2]
[352024946,1738887046461,-327.0,0.0001448,2]
[352024948,1738887046471,-563.29815266,0.0001449,2]
[352024951,1738887046481,-1000.0,0.0001449,2]
[352024953,1738887046491,-506.76284795,0.0001449,2]
[352024954,1738887046501,-503.08834129,0.00014498,2]
[352024957,1738887046510,-1392.91,0.000145,2]
[352024959,1738887046521,-1000.0,0.0001451,2]
[352024961,1738887046531,-4184.85555118,0.00014512,2]
[352024963,1738887046541,-152.925212,0.00014512,2]
[352024965,1738887046551,-152.925212,0.00014512,2]
[352024967,1738887046561,-214.303582,0.00014512,2]
[352024969,1738887046570,-172.084125,0.0001452,2]
[352024971,1738887046579,-172.084125,0.0001452,2]
[352024973,1738887046589,-500.0,0.0001452,2]
[352024975,1738887046598,-439.849649,0.0001452,2]
[352024977,1738887046607,-439.849649,0.0001452,2]
[352024979,1738887046617,-160.528943,0.0001452,2]
[352024981,1738887046628,-160.528943,0.0001452,2]
[352024983,1738887046638,-166.83544469,0.0001452,2]
[352024985,1738887046648,-2953.62,0.0001452,2]
[352024987,1738887046658,-500.0,0.0001452,2]
[352024989,1738887046667,-693.01,0.0001452,2]
[352024991,1738887046677,-396.7538036,0.0001452,2]
[352024993,1738887046688,-500.0,0.0001452,2]
[352024995,1738887046697,-500.0,0.0001452,2]
[352024997,1738887046707,-615.18,0.0001452,2]
[352024999,1738887046716,-500.0,0.0001452,2]
[352025001,1738887046725,-500.0,0.0001452,2]
[352025003,1738887046735,-1609.36,0.0001452,2]
[352025005,1738887046745,-1279.9,0.0001452,2]
[352025007,1738887046755,-500.0,0.0001452,2]
[352025009,1738887046764,-5486.08,0.0001452,2]
[352025011,1738887046774,-592.24,0.0001452,2]
[352025013,1738887046784,-511.73,0.0001452,2]
[352025015,1738887046793,-151.0,0.0001452,2]
[352025017,1738887046803,-968.18,0.0001452,2]
[352025019,1738887046813,-151.0,0.0001452,2]
[352025021,1738887046822,-500.0,0.0001452,2]
[352025023,1738887046832,-1000.0,0.00014531,2]
[352025025,1738887046841,-156.277,0.00014556,2]
[352025027,1738887046851,-765.533,0.00014556,2]
[352025029,1738887046860,-151.0,0.00014556,2]
[352025031,1738887046870,-239.424887,0.00014556,2]
[352025033,1738887046880,-151.0,0.00014556,2]
[352025035,1738887046889,-151.0,0.00014556,2]
[352025037,1738887046899,-192.82949251,0.00014575,2]
[352025039,1738887046910,-465.00194051,0.00014578,2]
[352025042,1738887046937,-1173.02740642,0.00014586,2]
[352025044,1738887046947,-396.0,0.00014596,2]
[352025046,1738887046957,-575.0,0.000146,5]
[352025048,1738887046967,-3200.0,0.000146,2]
[352025050,1738887046978,-179.36917078,0.00014609,2]
[352025051,1738887046989,-150.0,0.00014636,2]
[352025054,1738887046999,-243.755405,0.00014657,2]
[352025055,1738887047009,-500.0,0.00014657,2]
[352025058,1738887047019,-703.04047,0.00014657,2]
[352025060,1738887047028,-703.04047,0.00014657,2]
[352025062,1738887047039,-151.0,0.00014657,2]
[352025063,1738887047048,-2953.62,0.00014657,2]
[352025065,1738887047058,-500.0,0.00014657,2]
[352025067,1738887047068,-357.636351,0.00014657,2]
[352025069,1738887047078,-357.636351,0.00014657,2]
[352025072,1738887047088,-693.01,0.00014657,2]
[352025074,1738887047098,-500.0,0.00014657,2]
[352025076,1738887047108,-500.0,0.00014657,2]
[352025078,1738887047119,-615.18,0.00014657,2]
[352025080,1738887047130,-500.0,0.00014657,2]
[352025082,1738887047139,-500.0,0.00014657,2]
[352025084,1738887047149,-1609.36,0.00014657,2]
[352025086,1738887047159,-1279.9,0.00014657,2]
[352025088,1738887047169,-500.0,0.00014657,2]
[352025090,1738887047180,-5486.08,0.00014657,2]
[352025092,1738887047190,-592.24,0.00014657,2]
[352025094,1738887047200,-511.73,0.00014657,2]
[352025096,1738887047210,-968.18,0.00014657,2]
[352025098,1738887047220,-500.0,0.00014657,2]
[352025100,1738887047230,-150.0,0.00014669,2]
[352025102,1738887047240,-150.0,0.00014669,2]
[352025104,1738887047250,-150.0,0.00014669,2]
[352025106,1738887047260,-537.0,0.00014669,2]
[352025108,1738887047270,-1975.0,0.00014669,2]
[352025110,1738887047281,-2297.0,0.00014669,2]
[352025112,1738887047291,-152.925212,0.00014669,2]
[352025115,1738887047301,-152.925212,0.00014669,2]
[352025117,1738887047311,-151.0,0.00014669,2]
[352025119,1738887047321,-151.0,0.00014669,2]
[352025120,1738887047331,-151.0,0.00014669,2]
[352025123,1738887047341,-1173.02740642,0.00014686,2]
[352025124,1738887047351,-1173.02740642,0.00014786,2]
[352025126,1738887047360,-172.084125,0.00014794,2]
[352025129,1738887047370,-172.084125,0.00014794,2]
[352025131,1738887047379,-375.78629421,0.00014794,2]
[352025133,1738887047390,-439.849649,0.00014794,2]
[352025135,1738887047401,-439.849649,0.00014794,2]
[352025137,1738887047411,-160.528943,0.00014794,2]
[352025139,1738887047420,-160.528943,0.00014794,2]
[352025141,1738887047430,-2953.62,0.00014794,2]
[352025143,1738887047439,-500.0,0.00014794,2]
[352025145,1738887047447,-693.01,0.00014794,2]
[352025147,1738887047456,-557.41826431,0.00014794,2]
[352025149,1738887047465,-500.0,0.00014794,2]
[352025151,1738887047475,-151.0,0.00014794,2]
[352025153,1738887047484,-151.0,0.00014794,2]
[352025155,1738887047493,-151.0,0.00014794,2]
[352025157,1738887047503,-615.18,0.00014794,2]
[352025159,1738887047513,-500.0,0.00014794,2]
[352025161,1738887047522,-500.0,0.00014794,2]
[352025163,1738887047532,-1609.36,0.00014794,2]
[352025165,1738887047542,-1279.9,0.00014794,2]
[352025167,1738887047551,-500.0,0.00014794,2]
[352025169,1738887047560,-5486.08,0.00014794,2]
[352025171,1738887047569,-592.24,0.00014794,2]
[352025173,1738887047577,-511.73,0.00014794,2]
[352025175,1738887047586,-151.0,0.00014794,2]
[352025178,1738887047596,-151.0,0.00014794,2]
[352025180,1738887047604,-968.18,0.00014794,2]
[352025181,1738887047611,-500.0,0.00014794,2]
[352025184,1738887047620,-919.5119749,0.00014849,2]
[352025186,1738887047630,-1200.0,0.00014856,2]
[352025188,1738887047640,-1173.02740642,0.00014886,2]
[352025190,1738887047651,-270373.34213117,0.000149,2]
[352029238,1738887132415,500.0,0.00011505,2]
[352029239,1738887263758,500.0,0.00011505,2]
[352029242,1738887943126,-162.811462,0.00012673,2]
[352029243,1738887943148,-250.0,0.00012801,2]
[352029244,1738887943170,-865.35010513,0.0001314,2]
[352029245,1738888030151,-2526.69530937,0.0001314,2]
[352029246,1738888030174,-300.0,0.00013697,2]
[352029247,1738888030197,-500.0,0.00013698,2]
[352029248,1738888030220,-513.73784169,0.00013698,2]
[352029249,1738888030243,-223.54349852,0.00013698,2]
[352029250,1738888037086,-283.84872003,0.00013698,2]
[352029251,1738888037108,-503.26340398,0.00013698,2]
[352029252,1738888037130,-535.66057709,0.00013698,2]
[352029253,1738888037151,-541.99,0.00013698,2]
[352029254,1738888037173,-503.64,0.00013698,2]
[352029255,1738888037195,-500.0,0.00013698,2]
[352029256,1738888037217,-500.0,0.00013698,2]
[352029257,1738888037240,-509.17,0.00013698,2]
[352029258,1738888037262,-3428.8,0.00013698,2]
[352029259,1738888037285,-24.18933342,0.00013698,2]
[352029260,1738888039100,-489.79066658,0.00013698,2]
[352029261,1738888039123,-500.0,0.00013698,2]
[352029262,1738888039145,-500.0,0.00013698,2]
[352029263,1738888039169,-247.02033342,0.00013698,2]
[352029264,1738888046138,-552.90966658,0.00013698,2]
[352029265,1738888046159,-322.86173074,0.00013698,2]
[352029266,1738888052095,-300.22980853,0.00013698,2]
[352029267,1738888052117,-564.3748124,0.00013698,2]
[352029268,1738888052140,-500.0,0.00013698,2]
[352029269,1738888052162,-500.0,0.00013698,2]
[352029270,1738888052183,-508.95,0.00013698,2]
[352029271,1738888052211,-519.58053829,0.00013698,2]
[352029272,1738888052234,-500.0,0.00013698,2]
[352029273,1738888052255,-518.57163884,0.00013698,2]
[352029274,1738888052280,-500.0,0.00013698,2]
[352029275,1738888052304,-1846.01,0.00013698,2]
[352029276,1738888052326,-605.11,0.00013698,2]
[352029277,1738888052350,-500.0,0.00013698,2]
[352029278,1738888052372,-513.75,0.00013698,2]
[352029279,1738888052398,-550.67,0.00013698,2]
[352029280,1738888052420,-513.21,0.00013698,2]
[352029281,1738888052443,-500.0,0.00013698,2]
[352029282,1738888052468,-500.0,0.00013698,2]
[352029283,1738888052490,-504.55466536,0.00013698,2]
[352029284,1738888052512,-560.74,0.00013698,2]
[352029285,1738888052535,-500.0,0.00013698,2]
[352029286,1738888052556,-1005.85,0.00013698,2]
[352029287,1738888052579,-500.0,0.00013698,2]
[352029288,1738888052601,-500.0,0.00013698,2]
[352029289,1738888052623,-500.0,0.00013698,2]
[352029290,1738888052647,-500.0,0.00013698,2]
[352029291,1738888052669,-225.556115,0.00013699,2]
[352029292,1738888052692,-664.45000822,0.00013735,2]
[352029293,1738888052715,-164.34,0.00013835,2]
[352029294,1738888052738,-429.79,0.00013835,2]
[352029295,1738888052762,-434.47,0.00013835,2]
[352029296,1738888052785,-3428.8,0.00013835,2]
[352029297,1738888052807,-500.0,0.00013835,2]
[352029298,1738888052829,-371.28,0.00013835,2]
[352029299,1738888053022,-799.93,0.00013835,2]
[352029300,1738888053047,-349.0,0.00013835,2]
[352029301,1738888053070,-522.91,0.00013835,2]
[352029302,1738888053094,-455.57236377,0.00013835,2]
[352029467,1738888238091,-300.0,0.00013149,2]
[352029469,1738888238100,-2165.75861875,0.0001315,2]
[352029471,1738888238111,-1774.93,0.0001315,2]
[352029989,1738888246277,-97.30793304,0.0001315,2]
[352030555,1738888739393,500.0,0.00011505,2]
[352030556,1738889159133,-1953.57415671,0.00012766,2]
[352030557,1738889225096,-300.0,0.00012658,2]
[352030558,1738889225117,-1643.7831,0.00012659,2]
[352030559,1738889235098,-10501.0652121,0.00012659,2]
[352030560,1738889235122,-822.44386046,0.00012766,2]
[352030561,1738889246111,-4874.70285698,0.00012766,2]
[352030562,1738889249094,-612.93761395,0.00012766,2]
[352030563,1738889249115,-2425.31654626,0.00013602,2]
[352030574,1738889432431,-656.67031815,0.00013598,2]
[352030575,1738889432444,-216.74707501,0.0001369,2]
[352030576,1738889432453,-999.70008997,0.00013697,2]
[352030577,1738889432464,-300.0,0.00013697,2]
[352030578,1738889432474,-500.0,0.00013698,2]
[352030579,1738889432483,-500.0,0.00013698,2]
[352030580,1738889432495,-500.0,0.00013698,2]
[352030581,1738889432506,-500.0,0.00013698,2]
[352030582,1738889432516,-594.09,0.00013698,2]
[352030583,1738889432527,-415.99476969,0.00013698,2]
[352030584,1738889432537,-500.0,0.00013698,2]
[352030585,1738889432547,-231.45166442,0.00013698,2]
[352030586,1738889432559,-268.54833558,0.00013698,2]
[352030587,1738889432568,-398.032975,0.00013698,2]
[352030588,1738889432579,-101.967025,0.00013698,2]
[352030589,1738889432589,-500.0,0.00013698,2]
[352030590,1738889432599,-500.0,0.00013698,2]
[352030591,1738889432608,-500.0,0.00013698,2]
[352030592,1738889432618,-500.0,0.00013698,2]
[352030593,1738889432627,-500.0,0.00013698,2]
[352030594,1738889432637,-500.0,0.00013698,2]
[352030595,1738889432646,-500.0,0.00013698,2]
[352030596,1738889432655,-1269.85,0.00013698,2]
[352030597,1738889432664,-500.0,0.00013698,2]
[352030598,1738889432673,-500.0,0.00013698,2]
[352030599,1738889432682,-500.0,0.00013698,2]
[352030600,1738889432692,-500.0,0.00013698,2]
[352030601,1738889432702,-500.0,0.00013698,2]
[352030602,1738889432711,-500.0,0.00013698,2]
[352030603,1738889432720,-500.0,0.00013698,2]
[352030604,1738889432730,-500.0,0.00013698,2]
[352030605,1738889432739,-500.0,0.00013698,2]
[352030606,1738889432749,-282.982975,0.00013698,2]
[352030607,1738889432764,-217.017025,0.00013698,2]
[352030608,1738889432774,-500.0,0.00013698,2]
[352030609,1738889432783,-500.0,0.00013698,2]
[352030610,1738889432792,-500.0,0.00013698,2]
[352030611,1738889432802,-500.0,0.00013698,2]
[352030612,1738889432811,-500.0,0.00013698,2]
[352030613,1738889432819,-432.78857887,0.00013698,2]
[352030614,1738889432831,-67.21142113,0.00013698,2]
[352030615,1738889432840,-268.70777594,0.00013698,2]
[352030616,1738889432849,-500.0,0.00013698,2]
[352030617,1738889432858,-500.0,0.00013698,2]
[352030618,1738889432867,-500.0,0.00013698,2]
[352030619,1738889432877,-779.83,0.00013698,2]
[352030620,1738889432887,-500.0,0.00013698,2]
[352030621,1738889432897,-500.0,0.00013698,2]
[352030622,1738889432907,-571.4472996,0.00013698,2]
[352030623,1738889432917,-500.0,0.00013698,2]
[352030624,1738889432928,-500.0,0.00013698,2]
[352030625,1738889432938,-500.0,0.00013698,2]
[352030626,1738889432948,-500.0,0.00013698,2]
[352030627,1738889432957,-500.0,0.00013698,2]
[352030628,1738889432966,-500.0,0.00013698,2]
[352030629,1738889432975,-500.0,0.00013698,2]
[352030630,1738889432985,-500.0,0.00013698,2]
[352030631,1738889432994,-500.0,0.00013698,2]
[352030632,1738889433003,-500.0,0.00013698,2]
[352030633,1738889433013,-500.0,0.00013698,2]
[352030634,1738889433022,-689.71,0.00013698,2]
[352030635,1738889433032,-500.0,0.00013698,2]
[352030636,1738889433041,-500.0,0.00013698,2]
[352030637,1738889433051,-500.0,0.00013698,2]
[352030638,1738889433060,-500.0,0.00013698,2]
[352030639,1738889433069,-500.0,0.00013698,2]
[352030640,1738889433079,-500.0,0.00013698,2]
[352030641,1738889433088,-500.0,0.00013698,2]
[352030642,1738889433098,-500.0,0.00013698,2]
[352030643,1738889433107,-500.0,0.00013698,2]
[352030644,1738889433117,-500.0,0.00013698,2]
[352030645,1738889433127,-500.0,0.00013698,2]
[352030646,1738889433136,-500.0,0.00013698,2]
[352030647,1738889433146,-500.0,0.00013698,2]
[352030648,1738889433156,-500.0,0.00013698,2]
[352030649,1738889433165,-500.0,0.00013698,2]
[352030650,1738889433175,-500.0,0.00013698,2]
[352030651,1738889433184,-500.0,0.00013698,2]
[352030652,1738889433194,-500.0,0.00013698,2]
[352030653,1738889433204,-500.0,0.00013698,2]
[352030654,1738889433214,-228.61713637,0.00013698,2]
[352030655,1738889433224,-500.0,0.00013698,2]
[352030656,1738889433234,-500.0,0.00013698,2]
[352030657,1738889433243,-508.37,0.00013698,2]
[352030658,1738889433253,-500.0,0.00013698,2]
[352030659,1738889433262,-500.0,0.00013698,2]
[352030660,1738889433271,-500.0,0.00013698,2]
[352030661,1738889433281,-500.0,0.00013698,2]
[352030662,1738889433290,-500.0,0.00013698,2]
[352030663,1738889433299,-500.0,0.00013698,2]
[352030664,1738889433309,-500.0,0.00013698,2]
[352030665,1738889433318,-500.0,0.00013698,2]
[352030666,1738889433327,-500.0,0.00013698,2]
[352030667,1738889433337,-500.0,0.00013698,2]
[352030668,1738889433346,-500.0,0.00013698,2]
[352030669,1738889433355,-500.0,0.00013698,2]
[352030670,1738889433528,-500.0,0.00013698,2]
[352030671,1738889433539,-430.93,0.00013698,2]
[352030672,1738889433549,-471.29003738,0.00013698,2]
[352030673,1738889433559,-500.0,0.00013698,2]
[352030674,1738889433569,-500.0,0.00013698,2]
[352030675,1738889433578,-693.28,0.00013698,2]
[352030676,1738889433588,-500.0,0.00013698,2]
[352030677,1738889433598,-500.0,0.00013698,2]
[352030678,1738889433607,-1829.5,0.00013698,2]
[352030679,1738889433617,-500.0,0.00013698,2]
[352030680,1738889433626,-500.0,0.00013698,2]
[352030681,1738889433636,-500.0,0.00013698,2]
[352030682,1738889433645,-500.0,0.00013698,2]
[352030683,1738889433654,-500.0,0.00013698,2]
[352030684,1738889433663,-500.0,0.00013698,2]
[352030685,1738889433672,-500.0,0.00013698,2]
[352030686,1738889433682,-1421.64,0.00013698,2]
[352030687,1738889433691,-500.0,0.00013698,2]
[352030688,1738889433701,-500.0,0.00013698,2]
[352030689,1738889433712,-500.0,0.00013698,2]
[352030690,1738889433725,-500.0,0.00013698,2]
[352030691,1738889433735,-500.0,0.00013698,2]
[352030692,1738889433748,-500.0,0.00013698,2]
[352030693,1738889433762,-500.0,0.00013698,2]
[352030694,1738889433771,-500.0,0.00013698,2]
[352030695,1738889433780,-500.0,0.00013698,2]
[352030696,1738889433790,-500.0,0.00013698,2]
[352030697,1738889433801,-500.0,0.00013698,2]
[352030698,1738889433810,-500.0,0.00013698,2]
[352030699,1738889433819,-500.0,0.00013698,2]
[352030700,1738889433829,-500.0,0.00013698,2]
[352030701,1738889433839,-500.0,0.00013698,2]
[352030702,1738889433848,-515.79,0.00013698,2]
[352030703,1738889433858,-500.0,0.00013698,2]
[352030704,1738889433867,-358.92039839,0.00013698,2]
[352030705,1738889433876,-500.0,0.00013698,2]
[352030706,1738889433886,-500.0,0.00013698,2]
[352030707,1738889433895,-6452.46,0.00013698,2]
[352030708,1738889433905,-500.0,0.00013698,2]
[352030709,1738889433914,-500.0,0.00013698,2]
[352030710,1738889433924,-500.0,0.00013698,2]
[352030711,1738889433934,-661.25,0.00013698,2]
[352030712,1738889433943,-500.0,0.00013698,2]
[352030713,1738889433953,-570.67925457,0.00013698,2]
[352030714,1738889433963,-555.33,0.00013698,2]
[352030715,1738889433973,-1101.82,0.00013698,2]
[352030716,1738889433982,-500.0,0.00013698,2]
[352030717,1738889433992,-260.08,0.00013698,2]
[352030718,1738889434001,-500.0,0.00013698,2]
[352030719,1738889434011,-500.0,0.00013698,2]
[352030720,1738889434021,-500.0,0.00013698,2]
[352030721,1738889434031,-500.0,0.00013698,2]
[352030722,1738889434041,-500.0,0.00013698,2]
[352030723,1738889434050,-501.09459429,0.00013698,2]
[352030724,1738889434060,-319.05526936,0.00013698,2]
[352030725,1738889434070,-500.0,0.00013698,2]
[352030726,1738889434079,-500.0,0.00013698,2]
[352030727,1738889434089,-500.0,0.00013698,2]
[352030728,1738889434098,-500.0,0.00013698,2]
[352030729,1738889434108,-500.0,0.00013698,2]
[352030730,1738889434118,-515.11468898,0.00013698,2]
[352030731,1738889434127,-500.0,0.00013698,2]
[352030732,1738889434137,-500.0,0.00013698,2]
[352030733,1738889434147,-500.0,0.00013698,2]
[352030734,1738889434156,-500.0,0.00013698,2]
[352030735,1738889434167,-500.0,0.00013698,2]
[352030736,1738889434176,-500.0,0.00013698,2]
[352030737,1738889434186,-501.68054084,0.00013698,2]
[352030738,1738889434196,-500.0,0.00013698,2]
[352030739,1738889434206,-500.0,0.00013698,2]
[352030740,1738889434216,-500.0,0.00013698,2]
[352030741,1738889434226,-500.0,0.00013698,2]
[352030742,1738889434236,-500.0,0.00013698,2]
[352030743,1738889434246,-1730.4821752,0.00013698,2]
[352030748,1738889438277,-1611.2578248,0.00013698,2]
[352030749,1738889438288,-270.94999317,0.00013698,2]
[352030750,1738889438298,-203.251995,0.00013699,2]
[352030751,1738889438308,-157.0,0.000138,3]
[352030752,1738889438318,-157.0,0.000138,4]
[352030753,1738889438328,-158.0,0.000138,5]
[352030754,1738889438338,-500.0,0.00013833,2]
[352030755,1738889438347,-406.57537613,0.00013833,2]
[352030756,1738889438357,-500.0,0.00013833,2]
[352030757,1738889438366,-500.0,0.00013833,2]
[352030758,1738889438376,-564.50692378,0.00013833,2]
[352030759,1738889438385,-500.0,0.00013833,2]
[352030760,1738889438395,-500.0,0.00013833,2]
[352030761,1738889438404,-500.0,0.00013833,2]
[352030762,1738889438413,-500.0,0.00013833,2]
[352030763,1738889438423,-539.1571624,0.00013833,2]
[352030764,1738889438433,-218.32869543,0.00013833,2]
[352030765,1738889438442,-23356.18333339,0.00013834,5]
[352030766,1738889438452,-500.0,0.00013834,2]
[352030767,1738889438461,-500.0,0.00013834,2]
[352030768,1738889438473,-502.2549291,0.00013834,2]
[352030769,1738889438482,-500.0,0.00013834,2]
[352030770,1738889438492,-500.0,0.00013834,2]
[352030771,1738889438501,-500.0,0.00013834,2]
[352030772,1738889438510,-500.0,0.00013834,2]
[352030773,1738889438520,-500.0,0.00013834,2]
[352030774,1738889438530,-500.0,0.00013834,2]
[352030775,1738889438540,-500.0,0.00013834,2]
[352030776,1738889438549,-500.0,0.00013834,2]
[352030777,1738889438560,-500.0,0.00013834,2]
[352030778,1738889438570,-500.0,0.00013834,2]
[352030779,1738889438579,-500.0,0.00013834,2]
[352030780,1738889438588,-576.45,0.00013834,2]
[352030781,1738889438598,-500.0,0.00013834,2]
[352030782,1738889438607,-500.0,0.00013834,2]
[352030783,1738889438616,-504.70852396,0.00013834,2]
[352030784,1738889438626,-500.0,0.00013834,2]
[352030785,1738889438635,-500.0,0.00013834,2]
[352030786,1738889438645,-500.0,0.00013834,2]
[352030787,1738889438655,-500.0,0.00013834,2]
[352030788,1738889438664,-500.0,0.00013834,2]
[352030789,1738889438674,-500.0,0.00013834,2]
[352030790,1738889438683,-500.0,0.00013834,2]